bitfinex-derivatives/quotes_BTCF0:USTF0_20250728
["timestamp","ask_amount","ask_price","bid_price","bid_amount"]
[1753731619194,1.03399827,117920.0,117910.0,1.55080188]
[1753731619592,0.65736682,117920.0,117910.0,1.57749188]
[1753731619793,1.03399827,117920.0,117910.0,1.57749188]
[1753731620385,0.65736682,117920.0,117910.0,1.57749188]
[1753731620693,1.03399827,117920.0,117910.0,1.57749188]
[1753731620887,1.0340224,117920.0,117910.0,1.57749188]
[1753731621796,1.0340224,117920.0,117910.0,1.55080188]
[1753731622594,1.0340224,117920.0,117910.0,1.17417043]
[1753731622790,1.0340224,117920.0,117910.0,1.55080188]
[1753731624196,1.0340224,117920.0,117910.0,1.17417043]
[1753731624497,1.0340224,117920.0,117910.0,1.55080188]
[1753731625398,1.0340224,117920.0,117910.0,1.17417043]
[1753731625793,1.0340224,117920.0,117910.0,1.55080188]
[1753731626498,1.0340224,117920.0,117910.0,1.57749188]
[1753731628803,1.0340224,117920.0,117910.0,1.20086043]
[1753731628993,1.0340224,117920.0,117910.0,1.57749188]
[1753731630798,0.18816095,117920.0,117910.0,1.07078938]
[1753731630992,0.18816095,117920.0,117910.0,1.60862188]
[1753731631397,0.23688095,117920.0,117910.0,1.60862188]
[1753731631600,0.23688095,117920.0,117910.0,1.77824678]
[1753731632100,0.23688095,117920.0,117910.0,1.60862188]
[1753731632299,0.23688095,117920.0,117910.0,1.77824678]
[1753731633000,0.23688095,117920.0,117910.0,1.68297197]
[1753731633203,0.23688095,117920.0,117910.0,1.68293197]
[1753731633594,0.23688095,117920.0,117910.0,1.51330707]
[1753731633899,0.23688095,117920.0,117910.0,1.68293207]
[1753731636508,0.23688095,117920.0,117910.0,1.51330707]
[1753731637002,0.23688095,117920.0,117910.0,1.68293207]
[1753731641096,0.21839282,117920.0,117910.0,1.68293207]
[1753731641296,0.23688102,117920.0,117910.0,1.68293207]
[1753731641699,0.23688102,117920.0,117910.0,1.51330707]
[1753731641899,0.23688102,117920.0,117910.0,1.68293217]
[1753731642905,0.23688102,117920.0,117910.0,1.51330707]
[1753731643303,0.23688102,117920.0,117910.0,1.68293217]
[1753731643709,0.23688102,117920.0,117910.0,1.51330707]
[1753731643902,0.23688102,117920.0,117910.0,1.68293217]
[1753731644503,0.23688102,117920.0,117910.0,1.51330707]
[1753731647012,0.23688102,117920.0,117910.0,1.68293217]
[1753731648014,0.23687973,117920.0,117910.0,1.68293217]
[1753731648811,0.18815973,117920.0,117910.0,1.68265217]
[1753731649712,0.23687973,117920.0,117910.0,1.68265217]
[1753731651814,0.23687973,117920.0,117910.0,1.00221217]
[1753731652016,0.23687973,117920.0,117910.0,1.68265217]
[1753731652810,0.23687973,117920.0,117910.0,1.68261217]
[1753731654819,0.23687973,117920.0,117910.0,1.68262644]
[1753731655021,0.23687973,117920.0,117910.0,1.77780107]
[1753731658216,0.18815973,117920.0,117910.0,1.77780107]
[1753731659119,0.18815973,117920.0,117910.0,2.15434661]
[1753731659519,0.18815973,117920.0,117910.0,1.77780107]
[1753731660324,0.3391952,117930.0,117920.0,0.6087577]
[1753731660522,0.3391952,117930.0,117920.0,1.36184878]
[1753731661313,0.3873252,117930.0,117920.0,1.36184878]
[1753731661714,0.3873252,117930.0,117920.0,0.98530324]
[1753731664924,0.2967929,117930.0,117920.0,1.36184878]
[1753731665125,0.2543922,117930.0,117920.0,1.3787168]
[1753731665531,0.0905252,117940.0,117920.0,1.505916]
[1753731665532,0.1271897,117940.0,117920.0,1.505916]
[1753731665724,0.2119864,117940.0,117930.0,2.04203448]
[1753731666930,0.2119864,117940.0,117930.0,1.8513498]
[1753731667327,0.2601164,117940.0,117930.0,1.8513498]
[1753731667527,0.2611164,117940.0,117930.0,1.8513498]
[1753731669931,0.2611164,117940.0,117930.0,2.1142498]
[1753731672025,0.2129864,117940.0,117930.0,2.1142498]
[1753731672232,0.1705912,117940.0,117930.0,2.1142498]
[1753731672431,0.18888978,117940.0,117930.0,2.1142498]
[1753731674537,0.18892978,117940.0,117930.0,2.1142498]
[1753731675638,0.1706312,117940.0,117930.0,2.1142498]
[1753731675836,0.00104,117940.0,117930.0,2.1142498]
[1753731676032,0.2119712,117950.0,117940.0,0.6087326]
[1753731676237,0.23026187,117950.0,117940.0,1.16984082]
[1753731676433,0.27839187,117950.0,117940.0,2.34232082]
[1753731677238,0.28039187,117950.0,117940.0,2.34232082]
[1753731677742,0.28139187,117950.0,117940.0,2.34232082]
[1753731678940,0.28143187,117950.0,117940.0,2.34232082]
[1753731680543,0.23330187,117950.0,117940.0,2.34232082]
[1753731680739,0.28143187,117950.0,117940.0,2.34232082]
[1753731682854,0.28142735,117950.0,117940.0,2.34232082]
[1753731685952,0.23329735,117950.0,117940.0,2.34232082]
[1753731686555,0.27950735,117950.0,117940.0,2.34232082]
[1753731686854,0.27950735,117950.0,117940.0,2.3422799]
[1753731687155,0.27950735,117950.0,117940.0,2.43738463]
[1753731688645,0.35671735,117950.0,117940.0,2.43738463]
[1753731688851,0.69982735,117950.0,117940.0,2.43738463]
[1753731693753,0.69982735,117950.0,117940.0,2.33892463]
[1753731693953,1.07609436,117950.0,117940.0,3.01852463]
[1753731694153,1.07609436,117950.0,117940.0,3.08682463]
[1753731695161,0.69982735,117950.0,117940.0,3.08682463]
[1753731699168,0.69982735,117950.0,117940.0,1.91426463]
[1753731699556,0.69982735,117950.0,117940.0,1.65136463]
[1753731700668,0.69982735,117950.0,117940.0,1.67805463]
[1753731704374,0.69982735,117950.0,117940.0,0.99853463]
[1753731704571,0.69982735,117950.0,117940.0,1.67797463]
[1753731705575,0.69982735,117950.0,117940.0,0.99853463]
[1753731705876,0.69982735,117950.0,117940.0,1.67793463]
[1753731714482,0.69982735,117950.0,117940.0,1.65124463]
[1753731715677,1.07609436,117950.0,117940.0,1.10539502]
[1753731715882,1.07609436,117950.0,117940.0,1.22342203]
[1753731716384,1.07609436,117950.0,117940.0,0.69624502]
[1753731718580,1.07609436,117950.0,117940.0,0.01700502]
[1753731718779,1.07631058,117950.0,117940.0,0.69624502]
[1753731718983,0.9811512,117950.0,117940.0,0.69624502]
[1753731720884,0.69982735,117950.0,117940.0,0.69624502]
[1753731721184,0.9811512,117950.0,117940.0,0.69624502]
[1753731721790,0.9811512,117950.0,117940.0,0.85561502]
[1753731723588,0.9811512,117950.0,117940.0,0.85557502]
[1753731725297,0.9811512,117950.0,117940.0,0.69620502]
[1753731726205,0.9811512,117950.0,117940.0,1.08951502]
[1753731728899,0.69982735,117950.0,117940.0,1.08951502]
[1753731729304,0.69982735,117950.0,117940.0,1.12103502]
[1753731729506,0.69982735,117950.0,117940.0,1.40235887]
[1753731729697,0.31114735,117950.0,117940.0,1.59862587]
[1753731730504,0.63780735,117950.0,117940.0,1.42904887]
[1753731730703,0.70712735,117950.0,117940.0,1.31730132]
[1753731730898,0.70712735,117950.0,117940.0,1.42904887]
[1753731732506,0.70712735,117950.0,117940.0,1.31730152]
[1753731732704,0.70712735,117950.0,117940.0,1.59862537]
[1753731733008,0.70712735,117950.0,117940.0,1.42904887]
[1753731735708,0.70712735,117950.0,117940.0,1.14772502]
[1753731735905,0.70712735,117950.0,117940.0,1.42904887]
[1753731737111,0.70712735,117950.0,117940.0,1.59862537]
[1753731737510,0.70712735,117950.0,117940.0,1.42904887]
[1753731739208,0.70712735,117950.0,117940.0,1.59863077]
[1753731739414,0.70712735,117950.0,117940.0,1.42904887]
[1753731741010,0.70712735,117950.0,117940.0,1.14772502]
[1753731741913,0.70712735,117950.0,117940.0,1.42904887]
[1753731743210,0.70712735,117950.0,117940.0,1.428973]
[1753731743815,1.08350927,117950.0,117940.0,1.52410694]
[1753731744607,0.28294735,117950.0,117940.0,1.52410694]
[1753731744808,0.31411735,117950.0,117940.0,1.52410694]
[1753731745014,1.08756927,117950.0,117940.0,1.52410694]
[1753731747717,1.08756927,117950.0,117940.0,1.50710192]
[1753731749619,1.08756927,117950.0,117940.0,0.82790192]
[1753731749812,1.08756927,117950.0,117940.0,1.50674192]
[1753731753915,1.08756927,117950.0,117940.0,0.45152]
[1753731754119,1.08756927,117950.0,117940.0,0.6788]
[1753731754514,0.97896438,117950.0,117930.0,0.24466]
[1753731754822,0.6474869,117930.0,117920.0,1.69690802]
[1753731755016,0.94717314,117930.0,117920.0,2.37570802]
[1753731755211,0.94717314,117930.0,117920.0,1.85128]
[1753731755616,1.22857323,117930.0,117920.0,1.85128]
[1753731755813,0.94717314,117930.0,117920.0,1.85128]
[1753731756021,0.94715355,117930.0,117920.0,1.85128]
[1753731756618,0.5770013,117920.0,117910.0,0.53735043]
[1753731756818,0.87668754,117920.0,117910.0,1.21615043]
[1753731757427,0.87668754,117920.0,117910.0,1.17450489]
[1753731757923,0.87668754,117920.0,117910.0,1.17650489]
[1753731758226,0.94718754,117920.0,117910.0,1.20265202]
[1753731758626,0.94718754,117920.0,117910.0,1.17650489]
[1753731759626,0.94718754,117920.0,117910.0,1.10332489]
[1753731759821,0.9923005,117920.0,117910.0,0.49770489]
[1753731760022,0.9923005,117920.0,117910.0,1.17650489]
[1753731760821,0.66578745,117920.0,117910.0,1.17650489]
[1753731762325,0.9923005,117920.0,117910.0,1.17650489]
[1753731762530,0.66578745,117920.0,117910.0,1.17650489]
[1753731762730,0.66578745,117920.0,117910.0,1.20319489]
[1753731767234,0.9923005,117920.0,117910.0,1.17650489]
[1753731768335,0.9923405,117920.0,117910.0,1.17650489]
[1753731778444,0.9923405,117920.0,117910.0,0.86435]
[1753731778632,0.9923405,117920.0,117910.0,0.68068]
[1753731778839,1.15560897,117920.0,117910.0,0.68068]
[1753731779137,1.15560897,117920.0,117910.0,0.85148]
[1753731779533,1.15560897,117920.0,117910.0,0.97207]
[1753731779736,1.15560897,117920.0,117910.0,1.08218]
[1753731780742,0.99234177,117920.0,117910.0,1.08218]
[1753731781148,0.6471257,117910.0,117900.0,0.47509618]
[1753731781339,0.99192617,117910.0,117900.0,0.45796146]
[1753731781538,0.99192617,117910.0,117900.0,1.13664146]
[1753731782636,0.99192617,117910.0,117900.0,1.13864146]
[1753731783537,0.66541185,117910.0,117900.0,1.16533146]
[1753731789159,0.6471257,117910.0,117900.0,1.16533146]
[1753731789459,0.66564407,117910.0,117900.0,1.16533146]
[1753731795659,0.99215839,117910.0,117900.0,1.16533146]
[1753731797062,0.99215839,117910.0,117900.0,1.16521146]
[1753731801470,0.99215839,117910.0,117900.0,1.10811146]
[1753731802763,0.91053505,117910.0,117900.0,1.35300244]
[1753731802966,0.91053505,117910.0,117900.0,1.10811146]
[1753731803868,0.91053505,117910.0,117900.0,1.35300244]
[1753731804269,0.91057505,117910.0,117900.0,1.10811146]
[1753731806067,0.91057505,117910.0,117900.0,1.35300244]
[1753731806267,0.91057505,117910.0,117900.0,1.37969244]
[1753731806767,0.91057505,117910.0,117900.0,1.54933204]
[1753731806968,0.91057505,117910.0,117900.0,1.37969244]
[1753731808970,0.66568407,117910.0,117900.0,1.13480146]
[1753731809171,0.66568407,117910.0,117900.0,1.30444106]
[1753731809367,0.66568407,117910.0,117900.0,1.13480146]
[1753731810267,0.66568407,117910.0,117900.0,1.10811146]
[1753731810568,0.99217154,117910.0,117900.0,1.10811146]
[1753731811666,0.99217154,117910.0,117900.0,0.70661146]
[1753731811871,0.99217154,117910.0,117900.0,0.02805146]
[1753731812066,0.99217154,117910.0,117900.0,0.75557146]
[1753731812370,0.66568407,117910.0,117900.0,1.09234146]
[1753731812570,0.99217154,117910.0,117900.0,1.09234146]
[1753731815471,0.66568407,117910.0,117900.0,1.09234146]
[1753731815774,0.99217154,117910.0,117900.0,1.12450146]
[1753731822679,0.99217154,117910.0,117900.0,1.15119146]
[1753731826278,0.99217154,117910.0,117900.0,1.12450146]
[1753731826581,0.99217154,117910.0,117900.0,0.89119]
[1753731827176,0.99217154,117910.0,117900.0,0.96075]
[1753731827477,0.99217154,117910.0,117900.0,1.06625]
[1753731827782,0.99217154,117910.0,117900.0,0.83678]
[1753731827981,0.24097,117900.0,117890.0,0.18686]
[1753731828181,0.84044094,117900.0,117890.0,1.09837]
[1753731828774,1.23466017,117900.0,117890.0,1.09837]
[1753731829181,1.23466017,117900.0,117890.0,0.41813]
[1753731829386,1.23466017,117900.0,117890.0,1.09837]
[1753731829786,1.23766017,117900.0,117890.0,1.09837]
[1753731830877,1.07433072,117900.0,117890.0,1.09837]
[1753731838787,0.6003127,117890.0,117850.0,0.16676]
[1753731838985,0.49630315,117860.0,117850.0,0.40073055]
[1753731839184,0.97737152,117860.0,117850.0,0.40073055]
[1753731839387,0.23309,117850.0,117840.0,0.18457]
[1753731839588,1.08615845,117850.0,117840.0,0.42338]
[1753731839890,1.08615845,117850.0,117840.0,1.10374]
[1753731840089,1.08615845,117850.0,117840.0,0.42338]
[1753731840290,1.10335873,117850.0,117840.0,1.10366]
[1753731840490,1.10135873,117850.0,117840.0,1.10366]
[1753731840689,1.16789497,117850.0,117840.0,1.10366]
[1753731841288,1.16889497,117850.0,117840.0,1.10366]
[1753731841889,1.16889497,117850.0,117840.0,1.03161]
[1753731842188,1.16889497,117850.0,117840.0,1.10366]
[1753731842591,1.16889497,117850.0,117830.0,0.42348]
[1753731842592,0.3555967,117840.0,117830.0,0.42348]
[1753731842787,0.95888395,117840.0,117830.0,1.03175]
[1753731843092,0.95888395,117840.0,117830.0,1.1038]
[1753731843489,0.97705922,117840.0,117830.0,1.1038]
[1753731844193,1.65757922,117840.0,117830.0,0.42348]
[1753731844392,1.66057922,117840.0,117830.0,0.42348]
[1753731844593,1.99018647,117840.0,117830.0,0.0001]
[1753731845791,1.99018647,117840.0,117830.0,1e-07]
[1753731846697,1.98718647,117840.0,117830.0,1e-07]
[1753731846897,0.63232,117810.0,117800.0,0.42846334]
[1753731847098,0.97710252,117810.0,117800.0,0.42846334]
[1753731847288,0.97698826,117810.0,117800.0,0.39621]
[1753731847497,0.97698826,117810.0,117800.0,0.005]
[1753731848101,0.97998826,117810.0,117800.0,0.005]
[1753731848596,0.97998826,117810.0,117800.0,0.39621]
[1753731849296,0.97998826,117810.0,117800.0,0.21798]
[1753731849595,0.97898826,117810.0,117800.0,0.005]
[1753731850300,1.66042826,117810.0,117800.0,0.005]
[1753731850592,1.26394101,117810.0,117800.0,0.78467725]
[1753731850799,1.33374101,117810.0,117800.0,0.45807]
[1753731850998,1.33374101,117810.0,117800.0,0.42838]
[1753731851390,1.33674101,117810.0,117800.0,0.42838]
[1753731852197,1.33570101,117810.0,117800.0,0.42838]
[1753731852396,1.66230826,117810.0,117800.0,0.42838]
[1753731852586,0.65438101,117810.0,117800.0,0.42838]
[1753731852787,0.27094101,117810.0,117800.0,0.95446175]
[1753731852998,0.02006101,117810.0,117800.0,0.95446175]
[1753731853194,0.02006101,117810.0,117800.0,1.963309]
[1753731853506,0.19183111,117810.0,117800.0,1.63670175]
[1753731853898,0.19183111,117810.0,117800.0,1.46691725]
[1753731854201,0.42492111,117810.0,117800.0,1.14031]
[1753731854399,0.98098836,117810.0,117800.0,1.11062]
[1753731855493,0.98098836,117810.0,117800.0,0.42838]
[1753731855689,0.65438111,117810.0,117800.0,1.11126]
[1753731855901,0.98098836,117810.0,117800.0,1.11126]
[1753731857103,0.65438111,117810.0,117800.0,1.14095]
[1753731858700,0.23905111,117810.0,117800.0,1.63734185]
[1753731860497,0.27094111,117810.0,117800.0,0.1574]
[1753731860697,0.65438111,117810.0,117800.0,0.005]
[1753731860902,0.98098836,117810.0,117800.0,0.17176]
[1753731861102,0.65438111,117810.0,117800.0,0.29003]
[1753731861303,0.65438111,117810.0,117800.0,0.39621]
[1753731861304,0.98098836,117810.0,117800.0,0.39621]
[1753731861497,0.98098836,117810.0,117800.0,0.005]
[1753731862602,0.65438111,117810.0,117800.0,0.1794]
[1753731862902,1.01962772,117810.0,117800.0,0.44362]
[1753731863298,0.6363201,117810.0,117800.0,0.29764]
[1753731863499,1.01962772,117810.0,117800.0,0.29764]
[1753731863798,1.03855704,117810.0,117800.0,0.41145]
[1753731865003,0.65524942,117810.0,117800.0,0.4443]
[1753731866807,0.65524942,117810.0,117800.0,0.41145]
[1753731867110,1.03855704,117810.0,117800.0,0.22848]
[1753731867301,1.03855704,117810.0,117800.0,1e-07]
[1753731868303,1.75075704,117810.0,117800.0,1e-07]
[1753731869100,0.6526933,117780.0,117770.0,0.97327962]
[1753731869304,0.6526933,117780.0,117760.0,0.2800305]
[1753731869305,0.2184177,117770.0,117760.0,0.47647806]
[1753731869505,1.03601532,117770.0,117760.0,0.02004756]
[1753731869703,1.04899319,117770.0,117760.0,0.02004756]
[1753731870002,0.6527222,117760.0,117750.0,1.15134]
[1753731870407,0.6527222,117760.0,117750.0,0.4393]
[1753731870611,0.6527222,117760.0,117750.0,1.15126]
[1753731871300,0.6527366,117750.0,117740.0,1.15186]
[1753731871903,0.6487366,117750.0,117740.0,1.15186]
[1753731872307,0.6487366,117750.0,117740.0,1.15238]
[1753731872811,0.6487366,117750.0,117740.0,1.15626]
[1753731874603,0.66797414,117750.0,117740.0,1.15626]
[1753731874805,0.66797413,117750.0,117740.0,1.15626]
[1753731875005,0.6487366,117750.0,117740.0,1.18595]
[1753731875413,0.6467366,117750.0,117740.0,1.18595]
[1753731875807,0.66597805,117750.0,117740.0,1.18595]
[1753731876105,0.66597805,117750.0,117740.0,1.15826]
[1753731876604,1.04928567,117750.0,117740.0,1.15826]
[1753731877309,0.66597805,117750.0,117740.0,1.18795]
[1753731878011,0.66597805,117750.0,117740.0,0.47499]
[1753731878212,0.6467366,117750.0,117740.0,1.18851]
[1753731879212,0.66604147,117750.0,117740.0,1.18851]
[1753731879411,0.666034,117750.0,117740.0,1.18851]
[1753731880111,0.72700751,117750.0,117740.0,1.18851]
[1753731880513,0.24412751,117750.0,117740.0,1.358381]
[1753731880705,0.231744,117750.0,117740.0,1.358381]
[1753731882617,0.231744,117750.0,117740.0,1.74168862]
[1753731883920,0.231744,117750.0,117740.0,1.64338862]
[1753731884218,0.183154,117750.0,117740.0,1.64338862]
[1753731884813,0.231744,117750.0,117740.0,1.58739223]
[1753731885512,0.183154,117750.0,117740.0,1.58739223]
[1753731886216,0.231744,117750.0,117740.0,1.58739223]
[1753731886418,0.433104,117750.0,117740.0,1.58739223]
[1753731887017,0.231744,117750.0,117740.0,1.58739223]
[1753731888307,0.183154,117750.0,117740.0,1.58739223]
[1753731891417,0.183154,117750.0,117740.0,0.70400123]
[1753731891622,0.231744,117750.0,117740.0,1.41440123]
[1753731891823,0.231744,117750.0,117740.0,1.84717223]
[1753731892824,0.231744,117750.0,117740.0,1.9034442]
[1753731894326,0.183154,117750.0,117740.0,1.9034442]
[1753731895725,0.232254,117750.0,117740.0,1.9034442]
[1753731897425,0.232254,117750.0,117740.0,1.9033642]
[1753731899334,0.670444,117750.0,117740.0,0.6099]
[1753731899526,1.0540272,117750.0,117740.0,0.36634]
[1753731899836,1.0540272,117750.0,117740.0,1.02698]
[1753731900037,0.670444,117750.0,117740.0,1.13971]
[1753731900235,0.670444,117750.0,117740.0,1.21225]
[1753731901442,0.670444,117750.0,117740.0,1.35521]
[1753731902725,0.670444,117750.0,117740.0,1.35453]
[1753731903639,0.670444,117750.0,117740.0,1.09163]
[1753731904031,0.670444,117750.0,117740.0,0.38331]
[1753731904239,0.670444,117750.0,117740.0,1.09127]
[1753731907534,0.670444,117750.0,117740.0,1.12096]
[1753731908846,0.670444,117750.0,117740.0,1.12008]
[1753731910445,0.670444,117750.0,117740.0,1.5036632]
[1753731910840,0.670444,117750.0,117740.0,1.12008]
[1753731913953,0.670444,117750.0,117740.0,1.44746619]
[1753731916045,0.99783019,117750.0,117740.0,1.41777619]
[1753731916250,0.99783019,117750.0,117740.0,1.41641619]
[1753731916452,0.99783019,117750.0,117740.0,1.08903]
[1753731917248,0.99783019,117750.0,117740.0,1.11872]
[1753731917448,0.670444,117750.0,117740.0,1.11872]
[1753731917658,0.670444,117750.0,117740.0,1.44610619]
[1753731918656,0.670444,117750.0,117740.0,1.11872]
[1753731918954,0.670444,117750.0,117740.0,1.08903]
[1753731919658,0.99783019,117750.0,117740.0,1.08903]
[1753731919852,0.99783019,117750.0,117740.0,0.31077]
[1753731920048,1.07568635,117750.0,117740.0,0.71104]
[1753731921255,1.07568635,117750.0,117740.0,0.89631]
[1753731922157,1.07568635,117750.0,117740.0,0.94486]
[1753731923653,1.07568635,117750.0,117740.0,0.23982]
[1753731923851,1.07568635,117750.0,117740.0,0.94458]
[1753731924157,1.07568635,117750.0,117740.0,0.006]
[1753731924359,1.07568635,117750.0,117740.0,0.71032]
[1753731924859,1.07568635,117750.0,117740.0,0.71016]
[1753731926454,1.07568635,117750.0,117740.0,0.006]
[1753731926659,1.07568635,117750.0,117740.0,0.71]
[1753731928562,1.07568635,117750.0,117740.0,0.006]
[1753731928762,1.07568635,117750.0,117740.0,0.70952]
[1753731929258,1.07568635,117750.0,117730.0,0.01695604]
[1753731929259,0.91182975,117750.0,117730.0,0.01695604]
[1753731929465,0.96596969,117740.0,117730.0,0.39156604]
[1753731929767,0.99825157,117740.0,117730.0,1.07737]
[1753731931158,0.99825157,117740.0,117730.0,0.7814]
[1753731931359,0.3531479,117730.0,117720.0,0.26188]
[1753731931556,0.98528149,117730.0,117720.0,1.07681]
[1753731931762,1.07612433,117730.0,117720.0,1.07681]
[1753731932065,1.09314351,117730.0,117720.0,1.07681]
[1753731932460,1.09614351,117730.0,117720.0,0.07912]
[1753731932670,1.09614351,117730.0,117720.0,0.7818]
[1753731932965,1.09614351,117730.0,117720.0,0.96854]
[1753731933562,1.09514351,117730.0,117720.0,0.96854]
[1753731933761,0.1699168,117710.0,117700.0,0.4093]
[1753731933962,0.98531039,117710.0,117700.0,0.4093]
[1753731934167,0.6579242,117710.0,117700.0,0.5792313]
[1753731934373,0.6579242,117710.0,117700.0,1.11166]
[1753731934667,0.5884442,117710.0,117700.0,0.5792312]
[1753731934971,0.5884442,117710.0,117700.0,1.60905739]
[1753731936167,0.5884442,117710.0,117700.0,1.62785666]
[1753731940870,0.6579242,117710.0,117700.0,1.12913927]
[1753731941069,0.6579242,117710.0,117700.0,1.62645676]
[1753731941769,0.6579242,117710.0,117700.0,0.92541676]
[1753731941969,0.6579242,117710.0,117700.0,1.62637676]
[1753731942169,0.6579242,117710.0,117700.0,1.29899057]
[1753731942377,0.6579242,117710.0,117700.0,1.45644546]
[1753731942673,0.6579242,117710.0,117700.0,1.45624546]
[1753731942866,0.6579242,117710.0,117700.0,1.12901927]
[1753731943368,0.6579242,117710.0,117700.0,1.29895047]
[1753731943570,0.6579242,117710.0,117700.0,1.62633666]
[1753731944174,0.6579242,117710.0,117700.0,1.45640546]
[1753731944672,0.6579242,117710.0,117700.0,1.62601666]
[1753731946371,0.6579242,117710.0,117700.0,1.62597666]
[1753731946875,0.6579242,117710.0,117700.0,0.77261104]
[1753731947069,0.6579242,117710.0,117700.0,1.64346224]
[1753731948466,0.6579242,117710.0,117700.0,1.64358224]
[1753731948671,0.6579242,117710.0,117700.0,1.64358234]
[1753731951268,0.6579242,117710.0,117700.0,1.12913927]
[1753731952164,0.6579242,117710.0,117700.0,1.12877927]
[1753731952363,0.98531039,117710.0,117700.0,1.12877927]
[1753731953270,0.98531039,117710.0,117700.0,0.39840927]
[1753731953471,0.98531039,117710.0,117700.0,1.09984927]
[1753731953668,0.98531039,117710.0,117700.0,0.72515927]
[1753731953977,0.98531039,117710.0,117700.0,0.75697]
[1753731954275,0.98531039,117710.0,117700.0,1.09993418]
[1753731954467,0.6579642,117710.0,117700.0,1.08225]
[1753731955377,0.98535039,117710.0,117700.0,1.08225]
[1753731955876,0.98535039,117710.0,117700.0,1.09937883]
[1753731956374,0.98535039,117710.0,117700.0,1.08225]
[1753731956676,0.98535039,117710.0,117700.0,0.70712]
[1753731957870,0.98535039,117710.0,117700.0,0.005]
[1753731958175,0.98635039,117710.0,117700.0,0.7056]
[1753731958373,0.98935039,117710.0,117700.0,0.7056]
[1753731959175,0.98935039,117710.0,117700.0,0.005]
[1753731959571,0.19469,117690.0,117650.0,0.19094335]
[1753731959779,0.6665218,117670.0,117660.0,1.10519]
[1753731959976,0.7402018,117670.0,117660.0,1.10515]
[1753731960681,0.75906587,117670.0,117660.0,1.10515]
[1753731961281,0.7402018,117670.0,117660.0,1.10807]
[1753731961481,0.7402018,117670.0,117660.0,1.10987]
[1753731961680,0.7402018,117670.0,117660.0,0.40959]
[1753731962081,0.7402018,117670.0,117660.0,1.10975]
[1753731963490,0.3356818,117670.0,117660.0,1.43713619]
[1753731964086,0.35459295,117670.0,117660.0,1.43713619]
[1753731964892,0.32185295,117670.0,117660.0,1.43713619]
[1753731965490,0.27387295,117670.0,117660.0,1.60760519]
[1753731966085,0.32185295,117670.0,117660.0,1.11023]
[1753731966290,0.32185295,117670.0,117660.0,1.60760519]
[1753731966584,0.68543295,117670.0,117660.0,1.43761619]
[1753731967192,1.08649914,117670.0,117660.0,0.37989]
[1753731967389,1.08649914,117670.0,117660.0,1.08609]
[1753731967690,0.75911295,117670.0,117660.0,1.256079]
[1753731967993,0.75911295,117670.0,117660.0,1.61316519]
[1753731968186,0.51654295,117670.0,117660.0,1.61316519]
[1753731968384,0.27387295,117670.0,117660.0,0.90696519]
[1753731968587,0.2549523,117680.0,117670.0,0.4618346]
[1753731968787,0.0849771,117690.0,117680.0,0.1699601]
[1753731968989,0.2549359,117690.0,117680.0,1.93540248]
[1753731969195,0.2549359,117690.0,117680.0,1.60801629]
[1753731970890,0.3029159,117690.0,117680.0,1.60801629]
[1753731974596,0.3029159,117690.0,117680.0,1.87091629]
[1753731975196,0.3029159,117690.0,117680.0,1.70095619]
[1753731975395,0.5045459,117690.0,117680.0,1.70095619]
[1753731975587,0.6664959,117690.0,117680.0,1.70095619]
[1753731975889,0.7401759,117690.0,117680.0,1.70095619]
[1753731976085,0.7401759,117690.0,117680.0,1.87091629]
[1753731977796,0.7401759,117690.0,117680.0,3.04591629]
[1753731978796,0.6664959,117690.0,117680.0,3.04591629]
[1753731980193,0.6664959,117690.0,117680.0,2.87595619]
[1753731980393,0.7401759,117690.0,117680.0,2.87595619]
[1753731980594,0.75968446,117690.0,117680.0,2.87595619]
[1753731980898,0.75968446,117690.0,117680.0,3.04591629]
[1753731981296,0.75968446,117690.0,117680.0,2.87595619]
[1753731982599,0.75968446,117690.0,117680.0,3.04591629]
[1753731983099,0.75968446,117690.0,117680.0,2.87595619]
[1753731983495,1.08707065,117690.0,117680.0,0.63779]
[1753731983703,1.08707065,117690.0,117680.0,1.20203]
[1753731984801,1.08707065,117690.0,117680.0,1.20275]
[1753731985190,1.08707065,117690.0,117680.0,1.20287]
[1753731985699,1.08707065,117690.0,117680.0,0.49775]
[1753731985895,1.08707065,117690.0,117680.0,0.2629]
[1753731986195,1.21400391,117690.0,117680.0,0.96826]
[1753731986407,1.21400391,117690.0,117680.0,0.70536]
[1753731986695,0.648539,117660.0,117650.0,1.75475544]
[1753731986895,0.99543375,117660.0,117650.0,1.47001544]
[1753731987093,0.99543375,117660.0,117650.0,1.35546508]
[1753731987294,0.66804756,117660.0,117650.0,1.35546508]
[1753731987897,0.66804756,117660.0,117650.0,1.68285127]
[1753731988093,0.66804756,117660.0,117650.0,1.88255477]
[1753731988303,0.66804756,117660.0,117650.0,1.18335477]
[1753731988505,0.66804756,117660.0,117650.0,1.89067477]
[1753731989098,0.66804756,117660.0,117650.0,1.88967477]
[1753731989294,0.66804756,117660.0,117650.0,1.01235127]
[1753731989504,0.66804756,117660.0,117650.0,0.2679]
[1753731989505,0.99543375,117660.0,117650.0,0.2679]
[1753731989903,1.12214137,117660.0,117650.0,0.97514]
[1753731990101,1.19036434,117660.0,117650.0,0.97514]
[1753731991305,1.19036434,117660.0,117650.0,0.97078]
[1753731991707,0.6485679,117640.0,117630.0,1.37759702]
[1753731991903,0.66807646,117640.0,117630.0,1.37759702]
[1753731992115,0.66807646,117640.0,117630.0,1.70498321]
[1753731992308,0.66807646,117640.0,117630.0,2.61199551]
[1753731993000,0.66907646,117640.0,117630.0,2.61199551]
[1753731993201,0.66907646,117640.0,117630.0,2.44196321]
[1753731993706,0.66907646,117640.0,117630.0,2.61199561]
[1753731994506,0.66907646,117640.0,117630.0,2.11457702]
[1753731994702,0.66907646,117640.0,117630.0,2.61199561]
[1753731994899,0.67007646,117640.0,117630.0,2.61199561]
[1753731995406,0.67007646,117640.0,117630.0,2.61183561]
[1753731995601,0.67007646,117640.0,117630.0,2.61175551]
[1753731996407,0.67007646,117640.0,117630.0,2.62742837]
[1753731998510,0.67007646,117640.0,117630.0,1.92038837]
[1753731998710,0.67007646,117640.0,117630.0,2.62662837]
[1753731999714,0.67007646,117640.0,117630.0,1.92038837]
[1753732000013,0.67007646,117640.0,117630.0,2.62650837]
[1753732001013,0.67007646,117640.0,117630.0,2.45647607]
[1753732001212,0.67007646,117640.0,117630.0,2.62650847]
[1753732002311,0.67007646,117640.0,117630.0,1.92038847]
[1753732002514,0.67007646,117640.0,117630.0,2.62590847]
[1753732002815,0.67007646,117640.0,117630.0,2.62574847]
[1753732003513,0.67007646,117640.0,117630.0,1.92038847]
[1753732003814,0.67007646,117640.0,117630.0,2.62538847]
[1753732004222,0.67007646,117640.0,117630.0,2.29800228]
[1753732004514,0.67007646,117640.0,117630.0,2.62538847]
[1753732006014,0.19152646,117640.0,117630.0,2.95277466]